[Event "Fast Chess"]
[Site "ChessKid.com"]
[Date "2020.03.23"]
[Round "3"]
[White "Sasse, Gabriel"]
[Black "Horvath, Alexander"]
[Result "0-1"]
[ECO "C50"]
[WhiteElo "1154"]
[BlackElo "1384"]
[PlyCount "64"]
[EventDate "2020.??.??"]
[TimeControl "900"]
[WhiteClock "0:12:08"]
[BlackClock "0:11:35"]

1. e4 {[%emt 0:00:00]} e5 {[%emt 0:00:01]} 2. Nf3 {[%emt 0:00:02]} Nf6 {
[%emt 0:00:02]} 3. Nc3 {[%emt 0:00:04]} Nc6 {[%emt 0:00:02]} 4. Bc4 {[%emt 0:
00:01]} h6 {[%emt 0:00:06]} 5. h3 {[%emt 0:00:03]} Bc5 {[%emt 0:00:02]} 6. O-O
{[%emt 0:00:02]} O-O {[%emt 0:00:02]} 7. d3 {[%emt 0:00:07]} d6 {[%emt 0:00:03]
} 8. a3 {[%emt 0:00:21]} a6 {[%emt 0:00:05]} 9. b4 {[%emt 0:00:02]} Ba7 {
[%emt 0:00:05]} 10. b5 {[%emt 0:00:05]} Ne7 {[%emt 0:00:01]} 11. bxa6 {[%emt 0:
00:02]} bxa6 {[%emt 0:00:04]} 12. Nd5 {[%emt 0:00:19]} Nexd5 {[%emt 0:00:04]}
13. exd5 {[%emt 0:00:01]} Bb7 {[%emt 0:00:05]} 14. Nd2 {[%emt 0:00:48]} Nxd5 {
[%emt 0:00:06]} 15. Qg4 {[%emt 0:00:07]} Bc8 {[%emt 0:00:16]} 16. Qg3 {[%emt 0:
00:03]} Nc3 {[%emt 0:00:10]} 17. Nb1 {[%emt 0:00:05]} Ne2+ {[%emt 0:00:03]} 18.
Kh2 {[%emt 0:00:08]} Nxg3 {[%emt 0:00:02]} 19. fxg3 {[%emt 0:00:01]} Bd4 {
[%emt 0:00:13]} 20. Ra2 {[%emt 0:00:05]} Be6 {[%emt 0:00:03]} 21. Bxe6 {
[%emt 0:00:03]} fxe6 {[%emt 0:00:01]} 22. Rxf8+ {[%emt 0:00:02]} Qxf8 {[%emt 0:
00:02]} 23. c3 {[%emt 0:00:07]} Ba7 {[%emt 0:00:12]} 24. d4 {[%emt 0:00:02]}
exd4 {[%emt 0:00:06]} 25. cxd4 {[%emt 0:00:01]} Bxd4 {[%emt 0:00:03]} 26. Nd2 {
[%emt 0:00:09]} Qf6 {[%emt 0:00:13]} 27. Nf3 {[%emt 0:00:03]} e5 {[%emt 0:00:
11]} 28. Nxd4 {[%emt 0:00:07]} exd4 {[%emt 0:00:03]} 29. Rb2 {[%emt 0:00:01]}
Qf1 {[%emt 0:00:04]} 30. Rc2 {[%emt 0:00:14]} Re8 {[%emt 0:00:05]} 31. Bd2 {
[%emt 0:00:07]} Re2 {[%emt 0:00:15]} 32. h4 {[%emt 0:00:03]} Qxg2# {[%emt 0:00:
02] KeenOrangeTeeth won by checkmate} 0-1

[Event "Fast Chess"]
[Site "ChessKid.com"]
[Date "2020.03.23"]
[Round "3"]
[White "Georgiev, Maximilian"]
[Black "Hessenberger, Oliver"]
[Result "1-0"]
[ECO "C57"]
[WhiteElo "1093"]
[BlackElo "573"]
[PlyCount "91"]
[EventDate "2020.??.??"]
[TimeControl "900"]
[WhiteClock "0:09:21"]
[BlackClock "0:10:14"]

1. e4 {[%emt 0:00:00]} e5 {[%emt 0:00:01]} 2. Nf3 {[%emt 0:00:02]} Nc6 {
[%emt 0:00:00]} 3. Bc4 {[%emt 0:00:05]} Nf6 {[%emt 0:00:01]} 4. Ng5 {[%emt 0:
00:03]} Qe7 {[%emt 0:00:25]} 5. Nxf7 {[%emt 0:00:03]} Rg8 {[%emt 0:00:04]} 6.
Nd6+ {[%emt 0:00:07]} cxd6 {[%emt 0:00:09]} 7. Bxg8 {[%emt 0:00:03]} Nxe4 {
[%emt 0:00:06]} 8. Bd5 {[%emt 0:00:07]} Ng5 {[%emt 0:00:11]} 9. O-O {[%emt 0:
00:05]} Qf6 {[%emt 0:00:06]} 10. d3 {[%emt 0:00:04]} Qh6 {[%emt 0:00:04]} 11.
Nc3 {[%emt 0:00:16]} e4 {[%emt 0:00:26]} 12. dxe4 {[%emt 0:00:04]} Be7 {
[%emt 0:00:10]} 13. Nb5 {[%emt 0:00:16]} Rb8 {[%emt 0:00:12]} 14. Nc7+ {
[%emt 0:00:05]} Kd8 {[%emt 0:00:05]} 15. Nb5 {[%emt 0:00:03]} Bf6 {[%emt 0:00:
07]} 16. Bxc6 {[%emt 0:00:09]} bxc6 {[%emt 0:00:05]} 17. Nxa7 {[%emt 0:00:02]}
Be5 {[%emt 0:00:08]} 18. f4 {[%emt 0:00:04]} Bd4+ {[%emt 0:00:07]} 19. Kh1 {
[%emt 0:00:05]} Nxe4 {[%emt 0:00:04]} 20. Qxd4 {[%emt 0:00:06]} Bb7 {[%emt 0:
00:16]} 21. Qb6+ {[%emt 0:00:04]} Ke7 {[%emt 0:00:07]} 22. Re1 {[%emt 0:00:07]}
c5 {[%emt 0:00:03]} 23. Nb5 {[%emt 0:00:06]} Qg6 {[%emt 0:00:07]} 24. Be3 {
[%emt 0:00:19]} Nc3 {[%emt 0:00:09]} 25. Rg1 {[%emt 0:00:11]} Nd5 {[%emt 0:00:
10]} 26. Qa7 {[%emt 0:00:13]} Rf8 {[%emt 0:00:35]} 27. Qxb7 {[%emt 0:00:16]}
Nxe3 {[%emt 0:00:05]} 28. Rae1 {[%emt 0:00:12]} Rxf4 {[%emt 0:00:15]} 29. Rxe3+
{[%emt 0:00:03]} Kf7 {[%emt 0:00:03]} 30. Qxd7+ {[%emt 0:00:07]} Kg8 {[%emt 0:
00:08]} 31. Re8+ {[%emt 0:00:09]} Rf8 {[%emt 0:00:04]} 32. Rxf8+ {[%emt 0:00:
03]} Kxf8 {[%emt 0:00:02]} 33. Qd8+ {[%emt 0:00:04]} Kf7 {[%emt 0:00:09]} 34.
Rf1+ {[%emt 0:00:03]} Ke6 {[%emt 0:00:03]} 35. Qc8+ {[%emt 0:00:04]} Kd5 {
[%emt 0:00:03]} 36. Nc3+ {[%emt 0:00:05]} Kd4 {[%emt 0:00:03]} 37. Rf4+ {
[%emt 0:00:05]} Ke3 {[%emt 0:00:04]} 38. g3 {[%emt 0:00:07]} Qxc2 {[%emt 0:00:
11]} 39. Nd5+ {[%emt 0:00:08]} Ke2 {[%emt 0:00:05]} 40. Nc3+ {[%emt 0:00:05]}
Kd3 {[%emt 0:00:09]} 41. Qa6+ {[%emt 0:00:05]} Ke3 {[%emt 0:00:04]} 42. Nd5+ {
[%emt 0:00:11]} Kd2 {[%emt 0:00:06]} 43. Rf2+ {[%emt 0:00:04]} Ke1 {[%emt 0:00:
03]} 44. Rxc2 {[%emt 0:00:01]} Kd1 {[%emt 0:00:02]} 45. Qd3+ {[%emt 0:00:04]}
Ke1 {[%emt 0:00:05]} 46. Qe2# {[%emt 0:00:01] TallSnazzyBall won by checkmate}
1-0

[Event "Fast Chess"]
[Site "ChessKid.com"]
[Date "2020.03.23"]
[Round "3"]
[White "Gross, Lukas"]
[Black "Halimi, Dorian"]
[Result "1-0"]
[ECO "A00"]
[WhiteElo "750"]
[BlackElo "730"]
[PlyCount "73"]
[EventDate "2020.??.??"]
[TimeControl "900"]
[WhiteClock "0:11:54"]
[BlackClock "0:11:17"]

1. g3 {[%emt 0:00:00]} d5 {[%emt 0:00:00]} 2. Bg2 {[%emt 0:00:03]} Nc6 {
[%emt 0:00:06]} 3. Nh3 {[%emt 0:00:02]} Bxh3 {[%emt 0:00:06]} 4. Bxh3 {[%emt 0:
00:04]} Qd6 {[%emt 0:00:06]} 5. O-O {[%emt 0:00:03]} e6 {[%emt 0:00:14]} 6. f4
{[%emt 0:00:03]} O-O-O {[%emt 0:00:03]} 7. d3 {[%emt 0:00:05]} Nb4 {[%emt 0:00:
07]} 8. c3 {[%emt 0:00:06]} Qc5+ {[%emt 0:00:03]} 9. Kh1 {[%emt 0:00:06]} d4 {
[%emt 0:00:07]} 10. cxd4 {[%emt 0:00:03]} Qxd4 {[%emt 0:00:02]} 11. a3 {
[%emt 0:00:03]} Bc5 {[%emt 0:00:11]} 12. axb4 {[%emt 0:00:04]} Bxb4 {[%emt 0:
00:08]} 13. Bd2 {[%emt 0:00:25]} Bxd2 {[%emt 0:00:05]} 14. Qxd2 {[%emt 0:00:03]
} Nf6 {[%emt 0:00:05]} 15. Qc3 {[%emt 0:00:02]} Qe3 {[%emt 0:00:07]} 16. Qd2 {
[%emt 0:00:04]} Qd4 {[%emt 0:00:08]} 17. Qc3 {[%emt 0:00:02]} Qd7 {[%emt 0:00:
03]} 18. f5 {[%emt 0:00:15]} exf5 {[%emt 0:00:04]} 19. Bxf5 {[%emt 0:00:09]}
Nh5 {[%emt 0:00:13]} 20. Bxd7+ {[%emt 0:00:02]} Rxd7 {[%emt 0:00:02]} 21. d4 {
[%emt 0:00:07]} Rhd8 {[%emt 0:00:04]} 22. e3 {[%emt 0:00:04]} b6 {[%emt 0:00:
05]} 23. g4 {[%emt 0:00:07]} c5 {[%emt 0:00:05]} 24. gxh5 {[%emt 0:00:17]} Rc7
{[%emt 0:00:06]} 25. Rd1 {[%emt 0:00:06]} b5 {[%emt 0:00:03]} 26. Rd2 {[%emt 0:
00:13]} b4 {[%emt 0:00:03]} 27. Qc2 {[%emt 0:00:08]} cxd4 {[%emt 0:00:06]} 28.
Qd1 {[%emt 0:00:06]} dxe3 {[%emt 0:00:04]} 29. Rxd8+ {[%emt 0:00:03]} Kb7 {
[%emt 0:00:04]} 30. Rd7 {[%emt 0:00:03]} e2 {[%emt 0:00:05]} 31. Rxc7+ {
[%emt 0:00:12]} Kxc7 {[%emt 0:00:04]} 32. Qxe2 {[%emt 0:00:03]} a5 {[%emt 0:00:
04]} 33. Rxa5 {[%emt 0:00:03]} Kb6 {[%emt 0:00:04]} 34. Qb5+ {[%emt 0:00:06]}
Kc7 {[%emt 0:00:06]} 35. Qc5+ {[%emt 0:00:10]} Kb7 {[%emt 0:00:03]} 36. Rb5+ {
[%emt 0:00:07]} Ka6 {[%emt 0:00:03]} 37. Qb6# {[%emt 0:00:04] RosyPopularArm
won by checkmate} 1-0

[Event "Fast Chess"]
[Site "ChessKid.com"]
[Date "2020.03.25"]
[Round "1"]
[White "Nagel, Lucas"]
[Black "Georgiev, Maximilian"]
[Result "0-1"]
[ECO "C20"]
[WhiteElo "728"]
[BlackElo "1112"]
[PlyCount "48"]
[EventDate "2020.??.??"]
[TimeControl "300"]
[WhiteClock "0:03:14"]
[BlackClock "0:03:01"]

1. e4 {[%emt 0:00:03]} e5 {[%emt 0:00:02]} 2. Be2 {[%emt 0:00:03]} Nf6 {
[%emt 0:00:04]} 3. Nh3 {[%emt 0:00:05]} Nc6 {[%emt 0:00:02]} 4. Rf1 {[%emt 0:
00:03]} Nxe4 {[%emt 0:00:03]} 5. f3 {[%emt 0:00:05]} Nf6 {[%emt 0:00:02]} 6.
Ng5 {[%emt 0:00:04]} h6 {[%emt 0:00:07]} 7. Nh3 {[%emt 0:00:03]} d6 {[%emt 0:
00:04]} 8. d3 {[%emt 0:00:04]} Be7 {[%emt 0:00:03]} 9. Rf2 {[%emt 0:00:02]} d5
{[%emt 0:00:07]} 10. g4 {[%emt 0:00:06]} Bc5 {[%emt 0:00:04]} 11. Rg2 {[%emt 0:
00:03]} O-O {[%emt 0:00:10]} 12. c3 {[%emt 0:00:00]} d4 {[%emt 0:00:04]} 13.
Bd2 {[%emt 0:00:07]} dxc3 {[%emt 0:00:02]} 14. Bxc3 {[%emt 0:00:03]} Re8 {
[%emt 0:00:14]} 15. Rg3 {[%emt 0:00:06]} Bd6 {[%emt 0:00:06]} 16. Na3 {[%emt 0:
00:10]} e4 {[%emt 0:00:02]} 17. fxe4 {[%emt 0:00:03]} Bxg3+ {[%emt 0:00:02]}
18. Nf2 {[%emt 0:00:09]} Bxh2 {[%emt 0:00:06]} 19. Nh1 {[%emt 0:00:04]} Nxg4 {
[%emt 0:00:04]} 20. Nf2 {[%emt 0:00:13]} Nxf2 {[%emt 0:00:03]} 21. Kxf2 {
[%emt 0:00:03]} Qh4+ {[%emt 0:00:05]} 22. Ke3 {[%emt 0:00:04]} Qg3+ {[%emt 0:
00:05]} 23. Bf3 {[%emt 0:00:05]} Bg1+ {[%emt 0:00:02]} 24. Ke2 {[%emt 0:00:11]}
Qf2# {[%emt 0:00:04] TallSnazzyBall won by checkmate} 0-1

[Event "Fast Chess"]
[Site "ChessKid.com"]
[Date "2020.03.25"]
[Round "1"]
[White "Dai, Lana"]
[Black "Hessenberger, Oliver"]
[Result "1-0"]
[ECO "C50"]
[WhiteElo "1032"]
[BlackElo "554"]
[PlyCount "57"]
[EventDate "2020.??.??"]
[TimeControl "300"]
[WhiteClock "0:00:46"]
[BlackClock "0:00:24"]

1. e4 {[%emt 0:00:04]} e5 {[%emt 0:00:01]} 2. Nc3 {[%emt 0:00:13]} Nc6 {
[%emt 0:00:01]} 3. Bc4 {[%emt 0:00:03]} Nf6 {[%emt 0:00:03]} 4. Nf3 {[%emt 0:
00:03]} Bc5 {[%emt 0:00:05]} 5. d3 {[%emt 0:00:03]} O-O {[%emt 0:00:09]} 6. h3
{[%emt 0:00:05]} d6 {[%emt 0:00:11]} 7. Bg5 {[%emt 0:00:06]} h6 {[%emt 0:00:06]
} 8. Bh4 {[%emt 0:00:06]} Qe7 {[%emt 0:00:23]} 9. Nd5 {[%emt 0:00:09]} Qd8 {
[%emt 0:00:06]} 10. Nxf6+ {[%emt 0:00:18]} gxf6 {[%emt 0:00:05]} 11. d4 {
[%emt 0:00:20]} exd4 {[%emt 0:00:06]} 12. Bd5 {[%emt 0:00:18]} Qe8 {[%emt 0:00:
11]} 13. Qe2 {[%emt 0:00:12]} f5 {[%emt 0:00:03]} 14. Nd2 {[%emt 0:00:24]} fxe4
{[%emt 0:00:13]} 15. Bxe4 {[%emt 0:00:11]} Qe5 {[%emt 0:00:18]} 16. O-O-O {
[%emt 0:00:13]} Qf4 {[%emt 0:00:17]} 17. g3 {[%emt 0:00:08]} Qe5 {[%emt 0:00:
11]} 18. f4 {[%emt 0:00:17]} Qe6 {[%emt 0:00:08]} 19. f5 {[%emt 0:00:04]} Qxa2
{[%emt 0:00:03]} 20. Qg4+ {[%emt 0:00:11]} Kh8 {[%emt 0:00:12]} 21. Bf6+ {
[%emt 0:00:04]} Kh7 {[%emt 0:00:03]} 22. Nb3 {[%emt 0:00:17]} Rg8 {[%emt 0:00:
12]} 23. Qf4 {[%emt 0:00:10]} d3 {[%emt 0:00:07]} 24. Bxd3 {[%emt 0:00:15]} Nd4
{[%emt 0:00:11]} 25. Bxd4 {[%emt 0:00:06]} Bxd4 {[%emt 0:00:08]} 26. f6+ {
[%emt 0:00:09]} Kh8 {[%emt 0:00:22]} 27. Qxd4 {[%emt 0:00:02]} Be6 {[%emt 0:00:
14]} 28. Qe4 {[%emt 0:00:04]} Bxb3 {[%emt 0:00:06]} 29. Qh7# {[%emt 0:00:03]
TopBrownCave won by checkmate} 1-0

[Event "Fast Chess"]
[Site "ChessKid.com"]
[Date "2020.03.25"]
[Round "2"]
[White "Georgiev, Maximilian"]
[Black "Dai, Lana"]
[Result "1-0"]
[ECO "C55"]
[WhiteElo "1149"]
[BlackElo "1000"]
[PlyCount "81"]
[EventDate "2020.??.??"]
[TimeControl "300"]
[WhiteClock "0:00:01"]
[BlackClock "0:01:44"]

1. e4 {[%emt 0:00:04]} e5 {[%emt 0:00:03]} 2. Nf3 {[%emt 0:00:00]} Nf6 {
[%emt 0:00:02]} 3. Nc3 {[%emt 0:00:03]} Nc6 {[%emt 0:00:07]} 4. Bc4 {[%emt 0:
00:02]} Bc5 {[%emt 0:00:03]} 5. Ng5 {[%emt 0:00:03]} d5 {[%emt 0:00:04]} 6.
exd5 {[%emt 0:00:04]} Nd4 {[%emt 0:00:13]} 7. d6 {[%emt 0:00:14]} Be6 {[%emt 0:
00:46]} 8. dxc7 {[%emt 0:00:04]} Qxc7 {[%emt 0:00:07]} 9. Bxe6 {[%emt 0:00:02]}
fxe6 {[%emt 0:00:06]} 10. O-O {[%emt 0:00:15]} h6 {[%emt 0:00:10]} 11. Nf3 {
[%emt 0:00:07]} Nxf3+ {[%emt 0:00:07]} 12. Qxf3 {[%emt 0:00:02]} e4 {[%emt 0:
00:05]} 13. Nxe4 {[%emt 0:00:10]} Nxe4 {[%emt 0:00:06]} 14. Qxe4 {[%emt 0:00:
04]} Qd7 {[%emt 0:00:13]} 15. d3 {[%emt 0:00:17]} Qf7 {[%emt 0:00:16]} 16. Qa4+
{[%emt 0:00:08]} Qd7 {[%emt 0:00:15]} 17. Qxd7+ {[%emt 0:00:04]} Kxd7 {[%emt 0:
00:01]} 18. a4 {[%emt 0:00:14]} h5 {[%emt 0:00:09]} 19. h3 {[%emt 0:00:09]} b6
{[%emt 0:00:21]} 20. b3 {[%emt 0:00:03]} Bd4 {[%emt 0:00:05]} 21. Rb1 {[%emt 0:
00:06]} e5 {[%emt 0:00:04]} 22. Bb2 {[%emt 0:00:05]} Bxb2 {[%emt 0:00:05]} 23.
Rxb2 {[%emt 0:00:01]} Rhf8 {[%emt 0:00:05]} 24. Re1 {[%emt 0:00:06]} Kd6 {
[%emt 0:00:03]} 25. f3 {[%emt 0:00:03]} g5 {[%emt 0:00:05]} 26. g4 {[%emt 0:00:
06]} hxg4 {[%emt 0:00:03]} 27. fxg4 {[%emt 0:00:02]} Rf4 {[%emt 0:00:08]} 28.
Rf1 {[%emt 0:00:04]} Rxf1+ {[%emt 0:00:06]} 29. Kxf1 {[%emt 0:00:02]} Kd5 {
[%emt 0:00:05]} 30. Ke2 {[%emt 0:00:02]} e4 {[%emt 0:00:05]} 31. dxe4+ {
[%emt 0:00:02]} Kxe4 {[%emt 0:00:03]} 32. c4 {[%emt 0:00:04]} Kf4 {[%emt 0:00:
04]} 33. Kf2 {[%emt 0:00:03]} Rh8 {[%emt 0:00:09]} 34. Kg2 {[%emt 0:00:04]} Rh4
{[%emt 0:00:09]} 35. Rf2+ {[%emt 0:00:03]} Ke5 {[%emt 0:00:09]} 36. Kg3 {
[%emt 0:00:02]} Ke4 {[%emt 0:00:11]} 37. Re2+ {[%emt 0:00:04]} Kd3 {[%emt 0:00:
02]} 38. Rg2 {[%emt 0:00:03]} Kc3 {[%emt 0:00:02]} 39. b4 {[%emt 0:00:03]} Kxb4
{[%emt 0:00:02]} 40. c5 {[%emt 0:00:03]} Kxc5 {[%emt 0:00:03]} 41. a5 {[%emt 0:
00:02] TallSnazzyBall won on time} 1-0

[Event "Fast Chess"]
[Site "ChessKid.com"]
[Date "2020.03.25"]
[Round "2"]
[White "Hessenberger, Oliver"]
[Black "Nagel, Lucas"]
[Result "1-0"]
[ECO "B07"]
[WhiteElo "666"]
[BlackElo "541"]
[PlyCount "35"]
[EventDate "2020.??.??"]
[TimeControl "300"]
[WhiteClock "0:03:07"]
[BlackClock "0:03:06"]

1. e4 {[%emt 0:00:02]} d6 {[%emt 0:00:05]} 2. Nf3 {[%emt 0:00:01]} e6 {[%emt 0:
00:08]} 3. Bb5+ {[%emt 0:00:03]} Nc6 {[%emt 0:00:07]} 4. Bxc6+ {[%emt 0:00:03]}
bxc6 {[%emt 0:00:02]} 5. O-O {[%emt 0:00:02]} Ba6 {[%emt 0:00:09]} 6. d3 {
[%emt 0:00:09]} c5 {[%emt 0:00:04]} 7. Bg5 {[%emt 0:00:05]} f6 {[%emt 0:00:04]}
8. Bh4 {[%emt 0:00:04]} g6 {[%emt 0:00:05]} 9. Nfd2 {[%emt 0:00:24]} Bh6 {
[%emt 0:00:28]} 10. e5 {[%emt 0:00:08]} dxe5 {[%emt 0:00:02]} 11. Ne4 {[%emt 0:
00:05]} f5 {[%emt 0:00:06]} 12. Bxd8 {[%emt 0:00:03]} Kxd8 {[%emt 0:00:03]} 13.
Nec3 {[%emt 0:00:14]} e4 {[%emt 0:00:05]} 14. dxe4+ {[%emt 0:00:03]} Kc8 {
[%emt 0:00:13]} 15. Re1 {[%emt 0:00:15]} e5 {[%emt 0:00:02]} 16. Qd2 {[%emt 0:
00:02]} c4 {[%emt 0:00:06]} 17. Rd1 {[%emt 0:00:05]} Bb7 {[%emt 0:00:04]} 18.
Qd8# {[%emt 0:00:07] VastMellowGhost won by checkmate} 1-0

[Event "Fast Chess"]
[Site "ChessKid.com"]
[Date "2020.03.25"]
[Round "3"]
[White "Hessenberger, Oliver"]
[Black "Georgiev, Maximilian"]
[Result "1-0"]
[ECO "C48"]
[WhiteElo "846"]
[BlackElo "1079"]
[PlyCount "81"]
[EventDate "2020.??.??"]
[TimeControl "300"]
[WhiteClock "0:00:43"]
[BlackClock "0:00:31"]

1. e4 {[%emt 0:00:04]} e5 {[%emt 0:00:02]} 2. Nf3 {[%emt 0:00:02]} Nc6 {
[%emt 0:00:03]} 3. Nc3 {[%emt 0:00:00]} Nf6 {[%emt 0:00:04]} 4. Bb5 {[%emt 0:
00:01]} d6 {[%emt 0:00:08]} 5. Bxc6+ {[%emt 0:00:03]} bxc6 {[%emt 0:00:01]} 6.
O-O {[%emt 0:00:04]} Ba6 {[%emt 0:00:04]} 7. Re1 {[%emt 0:00:02]} Be7 {[%emt 0:
00:23]} 8. d3 {[%emt 0:00:12]} O-O {[%emt 0:00:03]} 9. d4 {[%emt 0:00:10]} exd4
{[%emt 0:00:04]} 10. Nxd4 {[%emt 0:00:03]} c5 {[%emt 0:00:08]} 11. Nf5 {
[%emt 0:00:07]} Qd7 {[%emt 0:00:08]} 12. Bg5 {[%emt 0:00:27]} h6 {[%emt 0:00:
08]} 13. Bxf6 {[%emt 0:00:03]} Bxf6 {[%emt 0:00:02]} 14. Qg4 {[%emt 0:00:09]}
Bb7 {[%emt 0:00:14]} 15. Nxh6+ {[%emt 0:00:10]} Kh7 {[%emt 0:00:09]} 16. Qxd7 {
[%emt 0:00:13]} gxh6 {[%emt 0:00:08]} 17. Qxc7 {[%emt 0:00:06]} Ba6 {[%emt 0:
00:06]} 18. Qxd6 {[%emt 0:00:21]} Bg7 {[%emt 0:00:08]} 19. Qxa6 {[%emt 0:00:03]
} Rad8 {[%emt 0:00:07]} 20. Red1 {[%emt 0:00:10]} Rde8 {[%emt 0:00:04]} 21. Rd2
{[%emt 0:00:15]} h5 {[%emt 0:00:06]} 22. Rad1 {[%emt 0:00:04]} Rb8 {[%emt 0:00:
19]} 23. Qa5 {[%emt 0:00:08]} Bf6 {[%emt 0:00:06]} 24. e5 {[%emt 0:00:03]} Bg5
{[%emt 0:00:03]} 25. f4 {[%emt 0:00:08]} Be7 {[%emt 0:00:08]} 26. f5 {[%emt 0:
00:02]} f6 {[%emt 0:00:04]} 27. exf6 {[%emt 0:00:03]} Bxf6 {[%emt 0:00:02]} 28.
Rd6 {[%emt 0:00:07]} Kh6 {[%emt 0:00:09]} 29. Ne4 {[%emt 0:00:18]} Kg7 {
[%emt 0:00:15]} 30. Nxf6 {[%emt 0:00:04]} Rxf6 {[%emt 0:00:02]} 31. Rxf6 {
[%emt 0:00:10]} Kxf6 {[%emt 0:00:01]} 32. Qxa7 {[%emt 0:00:09]} Rxb2 {[%emt 0:
00:06]} 33. Rd6+ {[%emt 0:00:06]} Kxf5 {[%emt 0:00:03]} 34. Qxc5+ {[%emt 0:00:
04]} Ke4 {[%emt 0:00:06]} 35. Qc3 {[%emt 0:00:03]} Rb1+ {[%emt 0:00:04]} 36.
Kf2 {[%emt 0:00:02]} Kf4 {[%emt 0:00:04]} 37. Rd4+ {[%emt 0:00:03]} Kf5 {
[%emt 0:00:05]} 38. Qc5+ {[%emt 0:00:02]} Ke6 {[%emt 0:00:08]} 39. Rd6+ {
[%emt 0:00:03]} Ke7 {[%emt 0:00:04]} 40. Qc7+ {[%emt 0:00:03]} Ke8 {[%emt 0:00:
12]} 41. Rd8# {[%emt 0:00:02] VastMellowGhost won by checkmate} 1-0

[Event "Fast Chess"]
[Site "ChessKid.com"]
[Date "2020.03.26"]
[Round "1"]
[White "Gross, Lukas"]
[Black "Georgiev, Maximilian"]
[Result "1-0"]
[ECO "A00"]
[WhiteElo "1049"]
[BlackElo "1164"]
[PlyCount "105"]
[EventDate "2020.??.??"]
[TimeControl "900"]
[WhiteClock "0:10:18"]
[BlackClock "0:08:39"]

1. g3 {[%emt 0:00:01]} e5 {[%emt 0:00:02]} 2. Bg2 {[%emt 0:00:03]} Nf6 {
[%emt 0:00:02]} 3. Nh3 {[%emt 0:00:02]} Nc6 {[%emt 0:00:04]} 4. O-O {[%emt 0:
00:02]} Bc5 {[%emt 0:00:05]} 5. c3 {[%emt 0:00:04]} O-O {[%emt 0:00:02]} 6. e3
{[%emt 0:00:02]} Re8 {[%emt 0:00:04]} 7. d4 {[%emt 0:00:01]} exd4 {[%emt 0:00:
02]} 8. exd4 {[%emt 0:00:02]} Bb6 {[%emt 0:00:03]} 9. d5 {[%emt 0:00:09]} Na5 {
[%emt 0:00:08]} 10. b4 {[%emt 0:00:07]} Nc4 {[%emt 0:00:03]} 11. a3 {[%emt 0:
00:23]} d6 {[%emt 0:00:06]} 12. Re1 {[%emt 0:00:07]} Rxe1+ {[%emt 0:00:03]} 13.
Qxe1 {[%emt 0:00:02]} Bxh3 {[%emt 0:00:13]} 14. Bxh3 {[%emt 0:00:02]} h6 {
[%emt 0:00:17]} 15. Bf1 {[%emt 0:00:13]} Ne5 {[%emt 0:00:08]} 16. Bf4 {[%emt 0:
00:15]} Neg4 {[%emt 0:00:04]} 17. Bh3 {[%emt 0:00:08]} Nxf2 {[%emt 0:00:10]}
18. Be3 {[%emt 0:00:13]} Bxe3 {[%emt 0:00:05]} 19. Qxe3 {[%emt 0:00:04]} Nd1 {
[%emt 0:00:03]} 20. Qd2 {[%emt 0:00:09]} Nxc3 {[%emt 0:00:19]} 21. Qxc3 {
[%emt 0:00:04]} Nxd5 {[%emt 0:00:02]} 22. Qc4 {[%emt 0:00:08]} Ne3 {[%emt 0:00:
03]} 23. Qd4 {[%emt 0:00:06]} Nf5 {[%emt 0:00:05]} 24. Bxf5 {[%emt 0:00:05]}
Qg5 {[%emt 0:00:07]} 25. Bh3 {[%emt 0:00:09]} Rb8 {[%emt 0:00:19]} 26. Nc3 {
[%emt 0:00:13]} b6 {[%emt 0:00:00]} 27. Ne4 {[%emt 0:00:07]} Qb5 {[%emt 0:00:
13]} 28. Nc3 {[%emt 0:00:13]} Qg5 {[%emt 0:00:07]} 29. Ne4 {[%emt 0:00:03]} Qh5
{[%emt 0:00:06]} 30. Nf2 {[%emt 0:00:12]} Qe2 {[%emt 0:00:02]} 31. Bf1 {
[%emt 0:00:11]} Qf3 {[%emt 0:00:08]} 32. Re1 {[%emt 0:00:13]} Qxa3 {[%emt 0:00:
09]} 33. Qe3 {[%emt 0:00:15]} Qxb4 {[%emt 0:00:05]} 34. Nd3 {[%emt 0:00:06]}
Qg4 {[%emt 0:00:04]} 35. Be2 {[%emt 0:00:04]} Qd7 {[%emt 0:00:04]} 36. Bf3 {
[%emt 0:00:10]} Qb5 {[%emt 0:00:06]} 37. Rd1 {[%emt 0:00:20]} Qb3 {[%emt 0:00:
02]} 38. Qd2 {[%emt 0:00:30]} Re8 {[%emt 0:00:05]} 39. Re1 {[%emt 0:00:05]}
Rxe1+ {[%emt 0:00:05]} 40. Nxe1 {[%emt 0:00:02]} Qb5 {[%emt 0:00:06]} 41. Be2 {
[%emt 0:00:03]} Qc5+ {[%emt 0:00:02]} 42. Kf1 {[%emt 0:00:11]} Qf5+ {[%emt 0:
00:02]} 43. Nf3 {[%emt 0:00:05]} Qh3+ {[%emt 0:00:09]} 44. Kf2 {[%emt 0:00:08]}
Qe6 {[%emt 0:00:04]} 45. Qe3 {[%emt 0:00:07]} Qb3 {[%emt 0:00:03]} 46. Qxb3 {
[%emt 0:00:02]} a5 {[%emt 0:00:06]} 47. Qc3 {[%emt 0:00:04]} c5 {[%emt 0:00:02]
} 48. Qb3 {[%emt 0:00:05]} Kf8 {[%emt 0:00:03]} 49. Qxb6 {[%emt 0:00:03]} Kg8 {
[%emt 0:00:02]} 50. Qxd6 {[%emt 0:00:02]} Kh7 {[%emt 0:00:03]} 51. Qxc5 {
[%emt 0:00:01]} g6 {[%emt 0:00:03]} 52. Qxa5 {[%emt 0:00:02]} Kg7 {[%emt 0:00:
03]} 53. Qc3+ {[%emt 0:00:05] RosyPopularArm won by resignation} 1-0

[Event "Fast Chess"]
[Site "ChessKid.com"]
[Date "2020.03.26"]
[Round "1"]
[White "Rosenkranz, Benjamin"]
[Black "Dai, Lana"]
[Result "0-1"]
[ECO "C50"]
[WhiteElo "1162"]
[BlackElo "1038"]
[PlyCount "34"]
[EventDate "2020.??.??"]
[TimeControl "900"]
[WhiteClock "0:12:52"]
[BlackClock "0:10:09"]

1. e4 {[%emt 0:00:05]} e5 {[%emt 0:00:03]} 2. Nf3 {[%emt 0:00:06]} Nc6 {
[%emt 0:00:06]} 3. Nc3 {[%emt 0:00:07]} Bc5 {[%emt 0:00:03]} 4. Bc4 {[%emt 0:
00:04]} Nf6 {[%emt 0:00:10]} 5. O-O {[%emt 0:00:08]} d6 {[%emt 0:00:05]} 6. d3
{[%emt 0:00:10]} h6 {[%emt 0:00:05]} 7. Bd2 {[%emt 0:00:09]} Bg4 {[%emt 0:00:
05]} 8. h3 {[%emt 0:01:39]} Bh5 {[%emt 0:00:06]} 9. Nb5 {[%emt 0:00:33]} Nd4 {
[%emt 0:00:15]} 10. Ba5 {[%emt 0:00:26]} b6 {[%emt 0:00:09]} 11. Bc3 {[%emt 0:
00:07]} Nxf3+ {[%emt 0:00:10]} 12. gxf3 {[%emt 0:00:04]} Nd7 {[%emt 0:00:17]}
13. Qd2 {[%emt 0:00:14]} Bxf3 {[%emt 0:00:07]} 14. d4 {[%emt 0:00:36]} exd4 {
[%emt 0:00:08]} 15. Bxd4 {[%emt 0:00:04]} Bxd4 {[%emt 0:00:09]} 16. Qxd4 {
[%emt 0:00:07]} Qg5+ {[%emt 0:00:04]} 17. Kh2 {[%emt 0:00:12]} Qg2# {[%emt 0:
00:07] TopBrownCave won by checkmate} 0-1